fUST/lending_fUST_20241006
["ID","MTS","AMOUNT","RATE_DAILY","PERIOD"]
[339935325,1728165051979,-151.0,0.00013698,2]
[339935326,1728165051989,-500.0,0.00013698,2]
[339935327,1728165051998,-151.0,0.00013698,2]
[339935328,1728165052007,-542.76,0.00013698,2]
[339935329,1728165052017,-567.167719,0.00013698,2]
[339935330,1728165052026,-270.966786,0.00013698,2]
[339935331,1728165052036,-567.167719,0.00013698,2]
[339935332,1728165052045,-567.167719,0.00013698,2]
[339935333,1728165052054,-567.167719,0.00013698,2]
[339935334,1728165052063,-567.167719,0.00013698,2]
[339935335,1728165052073,-567.167719,0.00013698,2]
[339935336,1728165052082,-500.0,0.00013698,2]
[339935337,1728165052092,-567.167719,0.00013698,2]
[339935338,1728165052102,-567.167719,0.00013698,2]
[339935339,1728165052113,-500.0,0.00013698,2]
[339935340,1728165052123,-500.0,0.00013698,2]
[339935341,1728165052133,-500.55936233,0.00013698,2]
[339935342,1728165052143,-567.167719,0.00013698,2]
[339935343,1728165052153,-567.167719,0.00013698,2]
[339935344,1728165052163,-500.0,0.00013698,2]
[339935345,1728165052174,-567.167719,0.00013698,2]
[339935346,1728165052184,-500.21915935,0.00013698,2]
[339935347,1728165052195,-567.167719,0.00013698,2]
[339935348,1728165052205,-567.167719,0.00013698,2]
[339935349,1728165052215,-567.167719,0.00013698,2]
[339935350,1728165052225,-567.167719,0.00013698,2]
[339935351,1728165052235,-847.96,0.00013698,2]
[339935352,1728165052245,-567.167719,0.00013698,2]
[339935353,1728165052255,-151.0,0.00013698,2]
[339935354,1728165052264,-567.167719,0.00013698,2]
[339935355,1728165052274,-151.0,0.00013698,2]
[339935356,1728165052283,-500.0,0.00013698,2]
[339935357,1728165052292,-599.3,0.00013698,2]
[339935358,1728165052301,-567.167719,0.00013698,2]
[339935359,1728165052310,-151.0,0.00013698,2]
[339935360,1728165052321,-567.167719,0.00013698,2]
[339935361,1728165052331,-151.0,0.00013698,2]
[339935362,1728165052342,-567.167717,0.00013698,2]
[339935363,1728165052352,-151.0,0.00013698,2]
[339935364,1728165052362,-151.0,0.00013698,2]
[339935365,1728165052373,-151.0,0.00013698,2]
[339935366,1728165052384,-6580.36,0.00013698,2]
[339935367,1728165052394,-151.0,0.00013698,2]
[339935368,1728165052405,-500.0,0.00013698,2]
[339935369,1728165052415,-500.0,0.00013698,2]
[339935370,1728165052425,-151.0,0.00013698,2]
[339935371,1728165052435,-500.0,0.00013698,2]
[339935372,1728165052446,-151.0,0.00013698,2]
[339935373,1728165052457,-151.0,0.00013698,2]
[339935374,1728165052467,-151.0,0.00013698,2]
[339935375,1728165052476,-151.0,0.00013698,2]
[339935376,1728165052486,-151.0,0.00013698,2]
[339935377,1728165052497,-151.0,0.00013698,2]
[339935378,1728165052509,-151.0,0.00013698,2]
[339935379,1728165052521,-151.0,0.00013698,2]
[339935380,1728165052532,-151.0,0.00013698,2]
[339935381,1728165052543,-283.469354,0.00013698,2]
[339935382,1728165052553,-500.0,0.00013698,2]
[339935383,1728165052565,-151.0,0.00013698,2]
[339935384,1728165052574,-151.0,0.00013698,2]
[339935385,1728165052585,-275.153764,0.00013698,2]
[339935386,1728165052595,-500.0,0.00013698,2]
[339935387,1728165052606,-500.0,0.00013698,2]
[339935388,1728165052617,-500.0,0.00013698,2]
[339935389,1728165052627,-500.0,0.00013698,2]
[339935390,1728165052637,-500.0,0.00013698,2]
[339935391,1728165052648,-1288.77,0.00013698,2]
[339935392,1728165052660,-500.0,0.00013698,2]
[339935393,1728165052671,-500.0,0.00013698,2]
[339935394,1728165052682,-767.56,0.00013698,2]
[339935395,1728165052695,-500.0,0.00013698,2]
[339935396,1728165052704,-500.0,0.00013698,2]
[339935397,1728165052714,-500.0,0.00013698,2]
[339935398,1728165052723,-500.0,0.00013698,2]
[339935399,1728165052735,-500.0,0.00013698,2]
[339935400,1728165052746,-500.0,0.00013698,2]
[339935401,1728165052758,-500.0,0.00013698,2]
[339935402,1728165052768,-500.0,0.00013698,2]
[339935403,1728165052777,-500.0,0.00013698,2]
[339935404,1728165052786,-500.0,0.00013698,2]
[339935405,1728165052795,-279.96200587,0.00013698,2]
[339935406,1728165052804,-500.0,0.00013698,2]
[339935407,1728165052815,-500.0,0.00013698,2]
[339935408,1728165052825,-500.0,0.00013698,2]
[339935409,1728165052834,-500.0,0.00013698,2]
[339935410,1728165052843,-500.0,0.00013698,2]
[339935411,1728165052852,-500.0,0.00013698,2]
[339935412,1728165052861,-500.0,0.00013698,2]
[339935413,1728165052870,-500.0,0.00013698,2]
[339935414,1728165052879,-500.0,0.00013698,2]
[339935415,1728165052889,-500.0,0.00013698,2]
[339935416,1728165052898,-392.970382,0.00013698,2]
[339935417,1728165052907,-392.970382,0.00013698,2]
[339935418,1728165052916,-392.970382,0.00013698,2]
[339935419,1728165052926,-500.0,0.00013698,2]
[339935420,1728165052935,-500.0,0.00013698,2]
[339935421,1728165052945,-392.970382,0.00013698,2]
[339935422,1728165052954,-392.970382,0.00013698,2]
[339935423,1728165052964,-500.23550126,0.00013698,2]
[339935424,1728165052974,-500.0,0.00013698,2]
[339935425,1728165052984,-392.970382,0.00013698,2]
[339935426,1728165052994,-381.15448939,0.00013698,2]
[339935427,1728165053003,-500.0,0.00013698,2]
[339935428,1728165053012,-392.970382,0.00013698,2]
[339935429,1728165053022,-392.970382,0.00013698,2]
[339935430,1728165053031,-392.970382,0.00013698,2]
[339935431,1728165053040,-500.0,0.00013698,2]
[339935432,1728165053049,-501.545947,0.00013698,2]
[339935433,1728165053059,-392.970382,0.00013698,2]
[339935434,1728165053068,-501.545947,0.00013698,2]
[339935435,1728165053077,-392.970382,0.00013698,2]
[339935436,1728165053087,-392.970382,0.00013698,2]
[339935437,1728165053098,-501.545947,0.00013698,2]
[339935438,1728165053107,-392.970382,0.00013698,2]
[339935439,1728165053116,-500.0,0.00013698,2]
[339935440,1728165053125,-501.545947,0.00013698,2]
[339935441,1728165053134,-392.970382,0.00013698,2]
[339935442,1728165053143,-1184.77,0.00013698,2]
[339935443,1728165053276,-501.545947,0.00013698,2]
[339935444,1728165053286,-392.970382,0.00013698,2]
[339935445,1728165053296,-501.545947,0.00013698,2]
[339935446,1728165053306,-392.970382,0.00013698,2]
[339935447,1728165053316,-501.545947,0.00013698,2]
[339935448,1728165053325,-392.970382,0.00013698,2]
[339935449,1728165053335,-501.545947,0.00013698,2]
[339935450,1728165053344,-392.970382,0.00013698,2]
[339935451,1728165053353,-500.0,0.00013698,2]
[339935452,1728165053363,-392.970382,0.00013698,2]
[339935453,1728165053372,-500.0,0.00013698,2]
[339935454,1728165053381,-501.545947,0.00013698,2]
[339935455,1728165053390,-500.0,0.00013698,2]
[339935456,1728165053399,-392.970385,0.00013698,2]
[339935457,1728165053408,-443.65388381,0.00013698,2]
[339935458,1728165053417,-501.545947,0.00013698,2]
[339935459,1728165053426,-500.0,0.00013698,2]
[339935460,1728165053435,-501.545947,0.00013698,2]
[339935461,1728165053445,-501.545947,0.00013698,2]
[339935462,1728165053454,-501.545947,0.00013698,2]
[339935463,1728165053463,-151.0,0.00013698,2]
[339935464,1728165053472,-501.545947,0.00013698,2]
[339935465,1728165053481,-151.0,0.00013698,2]
[339935466,1728165053491,-500.0,0.00013698,2]
[339935467,1728165053500,-501.545947,0.00013698,2]
[339935468,1728165053509,-151.0,0.00013698,2]
[339935469,1728165053518,-501.545947,0.00013698,2]
[339935470,1728165053527,-500.0,0.00013698,2]
[339935471,1728165053537,-151.0,0.00013698,2]
[339935472,1728165053546,-501.545947,0.00013698,2]
[339935473,1728165053555,-151.0,0.00013698,2]
[339935474,1728165053564,-501.545947,0.00013698,2]
[339935475,1728165053575,-151.0,0.00013698,2]
[339935476,1728165053585,-501.545947,0.00013698,2]
[339935477,1728165053594,-151.0,0.00013698,2]
[339935478,1728165053603,-501.545941,0.00013698,2]
[339935479,1728165053612,-151.0,0.00013698,2]
[339935480,1728165053621,-500.0,0.00013698,2]
[339935481,1728165053631,-151.0,0.00013698,2]
[339935482,1728165053640,-151.0,0.00013698,2]
[339935483,1728165053649,-151.0,0.00013698,2]
[339935484,1728165053659,-500.0,0.00013698,2]
[339935485,1728165053668,-151.0,0.00013698,2]
[339935486,1728165053678,-276.765228,0.00013698,2]
[339935487,1728165053687,-500.0,0.00013698,2]
[339935488,1728165053696,-500.0,0.00013698,2]
[339935489,1728165053705,-565.074975,0.00013698,2]
[339935490,1728165053716,-565.074975,0.00013698,2]
[339935491,1728165053725,-500.0,0.00013698,2]
[339935492,1728165053735,-565.074975,0.00013698,2]
[339935493,1728165053744,-565.074975,0.00013698,2]
[339935494,1728165053753,-500.0,0.00013698,2]
[339935495,1728165053762,-500.0,0.00013698,2]
[339935496,1728165053771,-565.074975,0.00013698,2]
[339935497,1728165053780,-565.074975,0.00013698,2]
[339935498,1728165053790,-565.074975,0.00013698,2]
[339935499,1728165053802,-565.074975,0.00013698,2]
[339935500,1728165053813,-565.074975,0.00013698,2]
[339935501,1728165053824,-565.074975,0.00013698,2]
[339935502,1728165053835,-565.074975,0.00013698,2]
[339935503,1728165053847,-565.074975,0.00013698,2]
[339935504,1728165053858,-148.61859097,0.00013698,2]
[339935505,1728165054202,-416.45638403,0.00013698,2]
[339935506,1728165054215,-565.074975,0.00013698,2]
[339935507,1728165054230,-581.23,0.00013698,2]
[339935508,1728165054240,-565.074975,0.00013698,2]
[339935509,1728165054251,-326.26366597,0.00013698,2]
[339935510,1728165054826,-238.81130903,0.00013698,2]
[339935511,1728165054838,-500.0,0.00013698,2]
[339935512,1728165054848,-500.0,0.00013698,2]
[339935513,1728165054859,-565.074975,0.00013698,2]
[339935514,1728165054870,-195.12640695,0.00013698,2]
[339935515,1728165054881,-565.074975,0.00013698,2]
[339935516,1728165054891,-565.074975,0.00013698,2]
[339935517,1728165054901,-500.0,0.00013698,2]
[339935518,1728165054910,-192.25166898,0.00013698,2]
[339935519,1728165054922,-372.82329858,0.00013698,2]
[339935520,1728165054931,-516.66,0.00013698,2]
[339935521,1728165054941,-284.17434992,0.00013698,2]
[339935522,1728165054953,-215.82565008,0.00013698,2]
[339935523,1728165054963,-84.96155992,0.00013698,2]
[339935524,1728165054975,-415.03844008,0.00013698,2]
[339935525,1728165054986,-133.4956268,0.00013698,2]
[339935526,1728165054998,-366.5043732,0.00013698,2]
[339935527,1728165055009,-247.0841268,0.00013698,2]
[339935528,1728165055022,-298.6358732,0.00013698,2]
[339935529,1728165055034,-112.47592599,0.00013698,2]
[339935558,1728166231905,-1175.58959362,0.00011786,2]
[339935559,1728166231920,-2096.07868398,0.00011786,2]
[339935560,1728166231930,-465.822338,0.00012,2]
[339935561,1728166231940,-157.894736,0.00012217,2]
[339935562,1728166231950,-163.226981,0.00012233,2]
[339935563,1728166231964,-163.226981,0.00012242,2]
[339935564,1728166231974,-163.226981,0.0001225,2]
[339935565,1728166231984,-157.894736,0.00012253,2]
[339935566,1728166231994,-163.226981,0.00012259,2]
[339935567,1728166232004,-163.226981,0.00012268,2]
[339935568,1728166232014,-163.226981,0.00012276,2]
[339935569,1728166232024,-163.226981,0.00012285,2]
[339935570,1728166232034,-157.894736,0.00012288,2]
[339935571,1728166232045,-163.226981,0.00012294,2]
[339935572,1728166232055,-157.894736,0.00012323,2]
[339935573,1728166232064,-157.894736,0.00012359,2]
[339935574,1728166232074,-157.894736,0.00012394,2]
[339935575,1728166232085,-157.894736,0.0001243,2]
[339935576,1728166232095,-157.894736,0.00012465,2]
[339935577,1728166232105,-157.894736,0.000125,2]
[339935578,1728166232116,-157.894736,0.00012536,2]
[339935579,1728166232128,-157.894736,0.00012571,2]
[339935580,1728166232138,-157.894736,0.00012606,2]
[339935581,1728166232148,-157.894736,0.00012642,2]
[339935582,1728166232158,-300.0,0.00012677,2]
[339935583,1728166232170,-300.0,0.00012677,2]
[339935584,1728166232183,-157.894736,0.00012677,2]
[339935585,1728166232195,-157.894736,0.00012713,2]
[339935586,1728166232205,-157.894736,0.00012748,2]
[339935587,1728166232214,-157.894736,0.00012783,2]
[339935588,1728166232224,-157.894736,0.00012819,2]
[339935589,1728166232237,-157.894736,0.00012854,2]
[339935590,1728166232247,-150842.0,0.000135,2]
[339935591,1728166232259,-6763.38030287,0.00013523,2]
[339935592,1728166232270,-230.82821677,0.00013578,2]
[339935593,1728166232281,-2146.4653924,0.00013578,2]
[339935594,1728166232292,-5164.66483678,0.0001358,2]
[339935595,1728166232301,-230.82821673,0.00013581,2]
[339935596,1728166232312,-230.82821673,0.00013583,2]
[339935597,1728166232321,-230.82821673,0.00013586,2]
[339935598,1728166232331,-230.82821673,0.00013588,2]
[339935599,1728166232342,-1000.0,0.00013588,2]
[339935600,1728166232353,-1136.85372504,0.00013598,2]
[339935601,1728166232366,-219.628,0.000136,2]
[339935602,1728166232377,-500.36366789,0.00013673,2]
[339935603,1728166232388,-500.0,0.00013673,2]
[339935604,1728166232400,-500.0,0.00013673,2]
[339935605,1728166232415,-500.0,0.00013673,2]
[339935606,1728166232425,-500.0,0.00013673,2]
[339935607,1728166232437,-508.87933556,0.00013673,2]
[339935608,1728166232449,-502.98971341,0.00013673,2]
[339935609,1728166232459,-500.0,0.00013673,2]
[339935610,1728166232470,-500.0,0.00013673,2]
[339935611,1728166232480,-500.0,0.00013673,2]
[339935612,1728166232490,-500.0,0.00013673,2]
[339935613,1728166232500,-602.56715053,0.00013673,2]
[339935614,1728166232510,-46236.950111,0.00013678,2]
[339935615,1728166232521,-3830.57305036,0.00013678,2]
[339935616,1728166232532,-11559.2375277,0.0001368,2]
[339935617,1728166232543,-957.64326259,0.0001368,2]
[339935618,1728166232554,-60713.53028161,0.00013688,2]
[339935619,1728166232568,-37177.47196308,0.00013688,2]
[339935622,1728166237975,-670.24779425,0.00013688,2]
[339935623,1728166238143,-39201.71291736,0.00013688,2]
[339935624,1728166238156,-947.8873767,0.00013688,2]
[339935625,1728166238167,-11491.7191511,0.00013688,2]
[339935626,1728166238178,-247.39182847,0.00013697,2]
[339935627,1728166238188,-5233.84020903,0.00013697,2]
[339935628,1728166238198,-500.0,0.00013698,2]
[339935629,1728166238208,-500.0,0.00013698,2]
[339935630,1728166238219,-500.0,0.00013698,2]
[339935631,1728166238230,-450.66055765,0.00013698,2]
[339935632,1728166238240,-500.0,0.00013698,2]
[339935633,1728166238251,-500.0,0.00013698,2]
[339935635,1728166238261,-438.78741091,0.00013698,2]
[339935636,1728166238271,-501.15649712,0.00013698,2]
[339935637,1728166238281,-500.0,0.00013698,2]
[339935638,1728166238292,-500.0,0.00013698,2]
[339935639,1728166238303,-500.0,0.00013698,2]
[339935640,1728166238314,-500.0,0.00013698,2]
[339935641,1728166238325,-500.0,0.00013698,2]
[339935642,1728166238335,-500.0,0.00013698,2]
[339935643,1728166238345,-500.0,0.00013698,2]
[339935644,1728166238355,-500.0,0.00013698,2]
[339935645,1728166238365,-500.0,0.00013698,2]
[339935646,1728166238376,-500.0,0.00013698,2]
[339935647,1728166238388,-500.0,0.00013698,2]
[339935648,1728166238398,-500.0,0.00013698,2]
[339935649,1728166238407,-500.0,0.00013698,2]
[339935650,1728166238419,-500.0,0.00013698,2]
[339935651,1728166238430,-500.0,0.00013698,2]
[339935652,1728166238443,-539.93,0.00013698,2]
[339935653,1728166238452,-776.65,0.00013698,2]
[339935654,1728166238464,-500.0,0.00013698,2]
[339935655,1728166238475,-500.0,0.00013698,2]
[339935656,1728166238485,-500.0,0.00013698,2]
[339935657,1728166238496,-500.0,0.00013698,2]
[339935658,1728166238509,-500.0,0.00013698,2]
[339935659,1728166238518,-500.91953704,0.00013698,2]
[339935660,1728166238528,-500.0,0.00013698,2]
[339935661,1728166238539,-500.0,0.00013698,2]
[339935662,1728166238550,-500.0,0.00013698,2]
[339935663,1728166238560,-500.0,0.00013698,2]
[339935664,1728166238570,-500.0,0.00013698,2]
[339935665,1728166238580,-500.0,0.00013698,2]
[339935666,1728166238590,-631.03137144,0.00013698,2]
[339935667,1728166238601,-651.9,0.00013698,2]
[339935668,1728166238611,-500.51080062,0.00013698,2]
[339935669,1728166238622,-654.61,0.00013698,2]
[339935670,1728166238632,-501.5227972,0.00013698,2]
[339935671,1728166238642,-500.0,0.00013698,2]
[339935672,1728166238652,-788.88,0.00013698,2]
[339935673,1728166238661,-500.0,0.00013698,2]
[339935674,1728166238674,-500.0,0.00013698,2]
[339935675,1728166238683,-584.27,0.00013698,2]
[339935676,1728166238693,-500.0,0.00013698,2]
[339935677,1728166238702,-500.0,0.00013698,2]
[339935678,1728166238711,-577.74,0.00013698,2]
[339935679,1728166238720,-500.0,0.00013698,2]
[339935680,1728166238732,-500.0,0.00013698,2]
[339935681,1728166238741,-500.0,0.00013698,2]
[339935682,1728166238751,-500.0,0.00013698,2]
[339935683,1728166238761,-500.0,0.00013698,2]
[339935684,1728166238770,-500.0,0.00013698,2]
[339935685,1728166238779,-500.0,0.00013698,2]
[339935686,1728166238789,-500.0,0.00013698,2]
[339935687,1728166238799,-500.0,0.00013698,2]
[339935688,1728166238810,-589.62,0.00013698,2]
[339935689,1728166238821,-500.0,0.00013698,2]
[339935690,1728166238831,-500.0,0.00013698,2]
[339935691,1728166238842,-500.0,0.00013698,2]
[339935692,1728166238852,-500.0,0.00013698,2]
[339935693,1728166238862,-500.0,0.00013698,2]
[339935694,1728166238871,-500.0,0.00013698,2]
[339935695,1728166238879,-500.0,0.00013698,2]
[339935696,1728166238891,-500.0,0.00013698,2]
[339935697,1728166238905,-500.0,0.00013698,2]
[339935698,1728166238915,-500.0,0.00013698,2]
[339935699,1728166238935,-500.0,0.00013698,2]
[339935700,1728166238946,-500.0,0.00013698,2]
[339935701,1728166238957,-470.01737928,0.00013698,2]
[339935702,1728166238969,-276.75764162,0.00013698,2]
[339935703,1728166238982,-500.0,0.00013698,2]
[339935704,1728166238992,-500.0,0.00013698,2]
[339935705,1728166239002,-500.0,0.00013698,2]
[339935706,1728166239013,-500.0,0.00013698,2]
[339935707,1728166239023,-500.0,0.00013698,2]
[339935708,1728166239034,-500.0,0.00013698,2]
[339935709,1728166239044,-955.92,0.00013698,2]
[339935710,1728166239054,-500.0,0.00013698,2]
[339935711,1728166239064,-500.0,0.00013698,2]
[339935712,1728166239074,-209.09086508,0.00013698,2]
[339935713,1728166239084,-500.0,0.00013698,2]
[339935714,1728166239095,-500.0,0.00013698,2]
[339935715,1728166239106,-500.0,0.00013698,2]
[339935716,1728166239116,-500.0,0.00013698,2]
[339935717,1728166239126,-563.33,0.00013698,2]
[339935718,1728166239137,-500.0,0.00013698,2]
[339935719,1728166239149,-500.16006235,0.00013698,2]
[339935720,1728166239161,-500.0,0.00013698,2]
[339935721,1728166239171,-500.0,0.00013698,2]
[339935722,1728166239182,-500.0,0.00013698,2]
[339935723,1728166239192,-500.0,0.00013698,2]
[339935724,1728166239203,-500.0,0.00013698,2]
[339935725,1728166239215,-500.0,0.00013698,2]
[339935726,1728166239224,-500.0,0.00013698,2]
[339935727,1728166239236,-500.0,0.00013698,2]
[339935728,1728166239247,-500.0,0.00013698,2]
[339935729,1728166239259,-500.0,0.00013698,2]
[339935730,1728166239270,-500.0,0.00013698,2]
[339935731,1728166239281,-500.91033364,0.00013698,2]
[339935732,1728166239292,-500.0,0.00013698,2]
[339935733,1728166239303,-1045.85,0.00013698,2]
[339935734,1728166239314,-500.0,0.00013698,2]
[339935735,1728166239323,-500.0,0.00013698,2]
[339935736,1728166239334,-500.0,0.00013698,2]
[339935737,1728166239344,-500.0,0.00013698,2]
[339935738,1728166239353,-570.74893721,0.00013698,2]
[339935739,1728166239362,-500.0,0.00013698,2]
[339935740,1728166239372,-500.0,0.00013698,2]
[339935741,1728166239382,-329.01169591,0.00013698,2]
[339935742,1728166239391,-500.0,0.00013698,2]
[339935743,1728166239401,-500.0,0.00013698,2]
[339935744,1728166239410,-500.19134765,0.00013698,2]
[339935745,1728166239419,-318.54,0.00013698,2]
[339935746,1728166239429,-539.14334618,0.00013698,2]
[339935747,1728166239438,-500.0,0.00013698,2]
[339935748,1728166239448,-500.0,0.00013698,2]
[339935749,1728166239458,-607.01,0.00013698,2]
[339935750,1728166239470,-500.0,0.00013698,2]
[339935751,1728166239483,-500.0,0.00013698,2]
[339935752,1728166239493,-500.0,0.00013698,2]
[339935753,1728166239505,-500.0,0.00013698,2]
[339935754,1728166239516,-500.0,0.00013698,2]
[339935755,1728166239525,-500.0,0.00013698,2]
[339935756,1728166239534,-500.0,0.00013698,2]
[339935757,1728166239544,-780.94,0.00013698,2]
[339935759,1728166239555,-500.0,0.00013698,2]
[339935760,1728166239565,-500.0,0.00013698,2]
[339935761,1728166239576,-500.0,0.00013698,2]
[339935762,1728166239587,-515.25238835,0.00013698,2]
[339935763,1728166239596,-500.0,0.00013698,2]
[339935764,1728166239608,-500.0,0.00013698,2]
[339935765,1728166239619,-553.38,0.00013698,2]
[339935766,1728166239632,-955.54,0.00013698,2]
[339935767,1728166239642,-500.0,0.00013698,2]
[339935768,1728166239653,-500.0,0.00013698,2]
[339935769,1728166239665,-500.0,0.00013698,2]
[339935770,1728166239675,-500.0,0.00013698,2]
[339935771,1728166239684,-700.77,0.00013698,2]
[339935772,1728166239695,-500.0,0.00013698,2]
[339935773,1728166239706,-500.0,0.00013698,2]
[339935774,1728166239717,-500.0,0.00013698,2]
[339935775,1728166239728,-500.0,0.00013698,2]
[339935776,1728166239739,-500.0,0.00013698,2]
[339935777,1728166239749,-500.0,0.00013698,2]
[339935778,1728166239762,-500.0,0.00013698,2]
[339935779,1728166239774,-500.0,0.00013698,2]
[339935780,1728166239785,-370.29,0.00013698,2]
[339935781,1728166239796,-1497.91,0.00013698,2]
[339935782,1728166239808,-514.09,0.00013698,2]
[339935783,1728166239819,-563.94,0.00013698,2]
[339935784,1728166239829,-529.92,0.00013698,2]
[339935785,1728166239841,-657.88,0.00013698,2]
[339935786,1728166239853,-500.0,0.00013698,2]
[339935787,1728166239863,-500.0,0.00013698,2]
[339935789,1728166239872,-500.0,0.00013698,2]
[339935790,1728166239882,-500.0,0.00013698,2]
[339935792,1728166239893,-500.0,0.00013698,2]
[339935794,1728166239906,-500.0,0.00013698,2]
[339935796,1728166239915,-500.0,0.00013698,2]
[339935797,1728166239927,-1566.76,0.00013698,2]
[339935798,1728166239939,-500.0,0.00013698,2]
[339935799,1728166239950,-500.0,0.00013698,2]
[339935800,1728166239961,-500.0,0.00013698,2]
[339935801,1728166239971,-500.0,0.00013698,2]
[339935802,1728166239980,-504.44,0.00013698,2]
[339935803,1728166239992,-500.0,0.00013698,2]
[339935804,1728166240002,-500.0,0.00013698,2]
[339935805,1728166240014,-500.26,0.00013698,2]
[339935806,1728166240024,-640.54,0.00013698,2]
[339935807,1728166240034,-500.0,0.00013698,2]
[339935808,1728166240044,-500.0,0.00013698,2]
[339935809,1728166240053,-513.53425258,0.00013698,2]
[339935811,1728166240063,-563.57,0.00013698,2]
[339935813,1728166240072,-500.0,0.00013698,2]
[339935814,1728166240082,-500.0,0.00013698,2]
[339935815,1728166240091,-511.73942794,0.00013698,2]
[339935816,1728166240100,-500.0,0.00013698,2]
[339935817,1728166240110,-757.13,0.00013698,2]
[339935818,1728166240119,-540.59534209,0.00013698,2]
[339935819,1728166240129,-500.0,0.00013698,2]
[339935820,1728166240139,-500.0,0.00013698,2]
[339935821,1728166240148,-500.0,0.00013698,2]
[339935822,1728166240158,-500.0,0.00013698,2]
[339935823,1728166240167,-500.0,0.00013698,2]
[339935824,1728166240177,-500.0,0.00013698,2]
[339935825,1728166240187,-500.0,0.00013698,2]
[339935826,1728166240196,-500.0,0.00013698,2]
[339935827,1728166240205,-255.99943752,0.00013698,2]
[339935828,1728166240214,-500.0,0.00013698,2]
[339935829,1728166240224,-500.0,0.00013698,2]
[339935830,1728166240233,-1092.64,0.00013698,2]
[339935831,1728166240242,-500.0,0.00013698,2]
[339935832,1728166240252,-500.0,0.00013698,2]
[339935833,1728166240265,-500.0,0.00013698,2]
[339935834,1728166240276,-500.0,0.00013698,2]
[339935835,1728166240288,-500.0,0.00013698,2]
[339935836,1728166240299,-500.0,0.00013698,2]
[339935837,1728166240311,-500.0,0.00013698,2]
[339935838,1728166240322,-1150.41,0.00013698,2]
[339935839,1728166240333,-500.0,0.00013698,2]
[339935840,1728166240343,-500.0,0.00013698,2]
[339935841,1728166240353,-500.0,0.00013698,2]
[339935842,1728166240363,-500.0,0.00013698,2]
[339935843,1728166240373,-500.0,0.00013698,2]
[339935844,1728166240384,-684.83,0.00013698,2]
[339935845,1728166240394,-151.0,0.00013698,2]
[339935846,1728166240406,-500.0,0.00013698,2]
[339935847,1728166240416,-151.0,0.00013698,2]
[339935848,1728166240426,-500.0,0.00013698,2]
[339935849,1728166240435,-151.0,0.00013698,2]
[339935850,1728166240445,-151.0,0.00013698,2]
[339935851,1728166240454,-151.0,0.00013698,2]
[339935852,1728166240464,-500.0,0.00013698,2]
[339935853,1728166240474,-500.0,0.00013698,2]
[339935854,1728166240485,-500.0,0.00013698,2]
[339935855,1728166240495,-528.66,0.00013698,2]
[339935856,1728166240658,-500.0,0.00013698,2]
[339935857,1728166240671,-752.36,0.00013698,2]
[339935858,1728166240682,-500.0,0.00013698,2]
[339935859,1728166240692,-569.66139018,0.00013698,2]
[339935860,1728166240703,-546.13,0.00013698,2]
[339935861,1728166240713,-500.0,0.00013698,2]
[339935862,1728166240723,-500.0,0.00013698,2]